Cogmind - Beta 16 @@@ ROGUE MODE // 2025.12.12 @ 12:14:38 // Winter2019/RPGLIKE Player: Gallgagger Result: Destroyed by G-50 Soldier with Heavy Laser Performance ------------- Evolutions (4) 2000 Regions Visited (6) 1200 Robots Destroyed (144) 720 Value Destroyed (5132) 5132 Prototype IDs (25) 500 Alien Tech Used (0) 0 Bonus (1209) 1209 TOTAL SCORE: 10761 Bonus ------- High Alert Combat Kills 516 Follower Combat Kills 185 Registered with UFD 300 Met Optimus in HQ 500 Friendly Fire -292 Cogmind --------- Core Integrity 0/1800 Matter 11/300 Energy 70/340 System Corruption 4% Temperature Cool (13) Movement Walking (125) Location -6/Factory Parts ------- > --- POWER (2) -------- Graviton Reactor > --- PROPULSION (4) --- Carbon-fiber Leg Cargo Legs > --- UTILITY (6+2) ---- Deep Structural Scanner Makeshift Salvage Targeting Computer Weapon Cycler Remote Force Field Hacking Suite Advanced Hacking Suite A0-MCA's Component Scanner (+) Tech Extrapolator (+) > --- WEAPON (3) ------- Enhanced Autogun Mini Smartbomb Launcher > --- INVENTORY (4) ---- IFF Parser Barrage Gun CPS Tube (2) CPS Tube (2) Peak State ------------ > --- POWER ------------ Graviton Reactor Graviton Reactor > --- PROPULSION ------- Carbon-fiber Leg Carbon-fiber Leg Cargo Legs > --- UTILITY ---------- Deep Structural Scanner IFF Parser Makeshift Salvage Targeting Computer Weapon Cycler Remote Force Field Hacking Suite A0-MCA's Component Scanner Tech Extrapolator > --- WEAPON ----------- Improved Spread Laser Enhanced Autogun Mini Smartbomb Launcher > --- INVENTORY -------- Barrage Gun CPS Tube CPS Tube [Rating: 97] Favorites ----------- Power Ion Engine Engine Ion Engine Power Core Light Nuclear Core Reactor Graviton Reactor Propulsion Cargo Legs Leg Cargo Legs Wheel Wheel Hover Unit Gravmag System Utility Improved Terrain Scanner Device Improved Terrain Scanner Processor Makeshift Salvage Targeting Computer Hackware Hacking Suite Protection Scrap Shield Weapon Barrage Gun Energy Gun Improved Spread Laser Energy Cannon Heavy Particle Cannon Ballistic Gun Barrage Gun Launcher Mini Smartbomb Launcher Build | -11 -10 -10 -10 -8 -8 -6 ------- Run | Yrd Mat Min Sub Rec Scr Fac Slots Evolved 11 | 3 4 . 1 . 1 2 Power 1 | . 1 . . . . . Propulsion 3 | 1 1 . . . . 1 Utility 5 | 1 1 . 1 . 1 1 Weapon 2 | 1 1 . . . . . Parts Attached 63 | 10 1 4 13 3 15 17 Power 7 | 1 . 1 . . 1 4 Engine 4 | 1 . 1 . . . 2 Core 1 | . . . . . 1 . Reactor 2 | . . . . . . 2 Propulsion 13 | 4 1 3 1 . 2 2 Treads . | . . . . . . . Leg 4 | . . . 1 . 1 2 Wheel 7 | 4 . 3 . . . . Hover 2 | . 1 . . . 1 . Flight . | . . . . . . . Utility 19 | 2 . . 3 . 8 6 Device 9 | 2 . . 1 . 4 2 Storage . | . . . . . . . Processor 4 | . . . . . 3 1 Hackware 3 | . . . . . . 3 Protection 3 | . . . 2 . 1 . Artifact . | . . . . . . . Weapon 24 | 3 . . 9 3 4 5 Energy Gun 5 | . . . . . 2 3 Energy Cannon 5 | . . . 1 3 1 . Ballistic Gun 13 | 3 . . 8 . 1 1 Ballistic Cannon . | . . . . . . . Launcher 1 | . . . . . . 1 Special Weapon . | . . . . . . . Impact Weapon . | . . . . . . . Slashing Weapon . | . . . . . . . Piercing Weapon . | . . . . . . . Special Melee Weapon . | . . . . . . . Unidentified Prototypes 2 | . . . 2 . . . Parts Lost 8 | . 1 . . . 3 4 Power 4 | . . . . . 1 3 Propulsion 2 | . 1 . . . . 1 Utility . | . . . . . . . Weapon 2 | . . . . . 2 . Highest Loss Streak 3 | . 1 . . . 3 2 To Critical Strikes . | . . . . . . . Average Backups 1 | 1 1 1 1 1 2 2 Power . | . . . . . . . Propulsion . | . . . . . . . Utility . | . . 1 . . . . Weapon . | . . . . . . . Tool/Special . | . . . . . . . Unused Backups 4 | . . . 2 . . 2 Power . | . . . . . . . Propulsion . | . . . . . . . Utility 1 | . . . 1 . . . Weapon 1 | . . . 1 . . . Tool/Special 2 | . . . . . . 2 Average Slot Usage (%) 76 | . 96 70 72 71 64 90 Engine 11 | . 13 9 14 14 12 4 Reactor 1 | . . . . . . 5 Leg 8 | . . . 6 7 9 16 Wheel 6 | . 21 18 8 7 . . Hover 1 | . 3 6 . . 2 . Device 16 | . 27 18 14 14 11 22 Processor 4 | . . . . . . 17 Protection 3 | . . . 6 7 4 . Energy Gun 2 | . . . . . 4 7 Energy Cannon 3 | . . . . 3 14 . Ballistic Gun 12 | . 27 18 21 17 . 5 Peak Build Rating 97 | 9 9 11 37 38 68 97 Average Rating 44 | 6 8 9 33 37 39 87 On Entrance 23 | . 9 9 11 37 38 57 Avg Prop Armor Cover (%) 5 | . 5 7 5 4 6 13 Naked Turns . | . . . . . . . Heaviest Build 52 | 11 11 14 41 46 46 52 Greatest Support 95 | 37 25 35 35 65 80 95 Greatest Overweight (x) 2 | . . . 2 2 1 1 Average Overweight (x) . | . . . 1 1 . . Largest Inventory Capacity 4 | 2 2 2 2 2 3 4 Average Capacity 2 | 2 2 2 2 2 2 3 Most Carried 4 | 2 2 2 2 2 3 4 Average Carried 1 | 1 1 1 1 1 2 2 Final Capacity 4 | 2 2 2 2 2 3 4 Final Carried 4 | 2 1 2 2 1 3 4 Class Distribution -------------------- 22% | Scavenger-Gunner 19% | Derelict-Skirmisher 17% | Scavenger-Skirmisher 14% | Skirmisher 10% | Scavenger-Mutant 8% | Mutant 3% | Tank Dominant Class ---------------- Scavenger-Mutant | -10/Materials Scavenger-Mutant | -10/Mines Scavenger-Skirmisher | -10/Subcaves Derelict-Skirmisher | -8/Recycling Skirmisher | -8/Scraptown Scavenger-Gunner | -6/Factory Resources | -11 -10 -10 -10 -8 -8 -6 ----------- Run | Yrd Mat Min Sub Rec Scr Fac Matter Collected 3426 | 354 473 202 1157 116 135 989 Remotely . | . . . . . . . Salvage Created 5160 | 133 890 384 955 214 363 2221 Parts 336 | 10 61 12 60 11 26 156 Haulers Intercepted 3 | . 1 . . . . 2 Recyclers Shooed 4 | . . 3 . . . 1 Parts Field Recycled . | . . . . . . . Retrieved Matter . | . . . . . . . Parts Self-Destructed 24 | . . . 24 . . . Prevented . | . . . . . . . Parts Restored . | . . . . . . . Kills | -11 -10 -10 -10 -8 -8 -6 ------- Run | Yrd Mat Min Sub Rec Scr Fac Combat Hostiles Destroyed 120 | . 30 2 27 2 6 53 Guns 120 | . 30 2 27 2 6 53 Classes Destroyed 22 | 2 4 1 4 . 4 7 Worker 7 | . . 2 . . . 5 Builder 1 | . 1 . . . . . Tunneler 3 | 3 . . . . . . Hauler 3 | . 1 . . . . 2 Recycler 8 | 1 . 4 . 2 . 1 Turret 1 | . . . 1 . . . Swarmer 22 | . 9 . 9 . . 4 Saboteur 2 | . . . . . . 2 Grunt 47 | . 21 2 2 . . 22 Brawler 1 | . . . . . . 1 Duelist 3 | . . . . . . 3 Protector 1 | . . . . . . 1 Sentry 6 | . . . 1 2 . 3 Specialist 2 | . . . . . . 2 Hunter 7 | . . . . . . 7 Programmer 8 | . . . . . . 8 Cobbler 1 | . . . 1 . . . Subdweller 16 | . . . 15 . 1 . Explorer 2 | . . . . . 2 . Guru 1 | . . . . . 1 . Scientist 1 | . . . . . 1 . Scrapper 3 | . . . . . 3 . Best Kill Streak 13 | 2 8 3 4 2 4 13 Combat Bots Only 12 | . 8 2 4 2 4 12 Max Kills in Single Turn 3 | 1 2 1 2 2 1 3 Gunslinging 1 | . 1 . 1 . . 1 Exploded . | . . . . . . . Melee . | . . . . . . . Uniques/NPCs Destroyed . | . . . . . . . Combat | -11 -10 -10 -10 -8 -8 -6 -------- Run | Yrd Mat Min Sub Rec Scr Fac Hostile Shots Fired 844 | . 122 8 118 18 83 495 Missed 261 | . 28 . 36 4 25 168 Hits 583 | . 94 8 82 14 58 327 Melee 20 | . . . . . 6 14 Projectile 563 | . 94 8 82 14 52 313 AOE 2 | . . . 2 . . . Critical Strikes 21 | . 1 . 4 . 4 12 Damage Taken 7889 | . 996 116 1486 210 1106 3975 Core 5994 | . 802 100 927 100 874 3191 Absorbed by Shields 1432 | . . . . . . 1432 Redirected to Core 4970 | . 594 53 824 82 755 2662 Ignored by Resistances 166 | . . . . . 49 117 Regen/Repaired (Parts) 10 | . 10 . . . . . Core Remaining (%) 55 | 100 . . . . 11 . Volleys Fired 490 | 9 82 23 124 9 28 215 Largest 3 | 2 2 2 3 3 3 3 Hottest 225 | 40 40 40 81 225 185 183 Shots Fired 1028 | 18 164 46 317 27 59 397 Gun 1001 | 18 164 46 306 18 56 393 Cannon 23 | . . . 11 9 3 . Launcher 4 | . . . . . . 4 Special . | . . . . . . . Kinetic 761 | 18 164 46 306 18 . 209 Thermal 204 | . . . 11 9 . 184 Explosive 4 | . . . . . . 4 Electromagnetic 59 | . . . . . 59 . Robot Hit Streak 43 | 5 31 14 24 6 24 43 Robot Miss Streak 5 | 2 5 2 4 1 2 5 Penetration Max . | . . . . . . . Secondary Targets 24 | . 4 1 5 1 . 13 Max Gunslinging Chain 1 | . 1 1 1 1 . 1 Shots Hit Robots 703 | 12 120 29 139 16 45 342 Core Hits 423 | 5 44 16 48 5 18 287 Critical Kills 1 | . . . 1 . . . Critical Parts Destroyed 1 | . 1 . . . . . Critical Strikes 4 | . 1 . 3 . . . Destroy 4 | . 1 . 3 . . . Melee Attacks . | . . . . . . . Impact . | . . . . . . . Slashing . | . . . . . . . Piercing . | . . . . . . . Sneak Attacks . | . . . . . . . Combat Hostiles . | . . . . . . . Follow-up Attacks . | . . . . . . . Damage Inflicted 13004 | 152 1603 359 2104 337 674 7775 Guns 12609 | 152 1603 359 2104 237 594 7560 Cannons 121 | . . . . 100 21 . Explosions 251 | . . . . . 59 192 Melee . | . . . . . . . Ramming 23 | . . . . . . 23 Kinetic 7390 | 152 1603 359 2104 237 . 2935 Thermal 4784 | . . . . 100 59 4625 Explosive 192 | . . . . . . 192 Electromagnetic 615 | . . . . . 615 . Impact . | . . . . . . . Slashing . | . . . . . . . Piercing . | . . . . . . . Highest Corruption 4 | . . . . . 1 4 Average Corruption 2 | . . . . . 1 2 Corruption Purged . | . . . . . . . Corruption Blocked . | . . . . . . . Effects 45 | . . . . . 1 44 Message Errors 9 | . . . . . . 9 Matter Fused 15 | . . . . . 1 14 Heat Flow Errors 1 | . . . . . . 1 Energy Discharges 8 | . . . . . . 8 Parts Rejected 1 | . . . . . . 1 Data Loss (minor) 3 | . . . . . . 3 Data Loss (major) 4 | . . . . . . 4 Misfires 1 | . . . . . . 1 Weapon Failures 3 | . . . . . . 3 Overload Shots . | . . . . . . . Overflow Damage . | . . . . . . . Projectiles . | . . . . . . . Explosions . | . . . . . . . Melee . | . . . . . . . Knockbacks . | . . . . . . . Impact . | . . . . . . . Kinetic . | . . . . . . . Secondary . | . . . . . . . Self-Inflicted Damage . | . . . . . . . Shots . | . . . . . . . Rammed . | . . . . . . . Targets Rammed 1 | . . . . . . 1 Kicked 1 | . . . . . . 1 Crushed . | . . . . . . . Highest Temperature 126 | . . . 4 126 44 125 Average Temperature 34 | . . . 4 33 28 35 Received Heat Transfer 2049 | . 312 63 246 54 532 842 Siege Activations . | . . . . . . . Martial Activations . | . . . . . . . Shielding Activations . | . . . . . . . Robots Disrupted 1 | . . . . . 1 . Combat Hostiles 1 | . . . . . 1 . Robots Corrupted . | . . . . . . . Combat Hostiles . | . . . . . . . Parts Fried 7 | . . . . . 7 . Impact Corruptions . | . . . . . . . Robots Melted . | . . . . . . . Combat Hostiles . | . . . . . . . Parts Melted 12 | . . . 1 1 1 9 Heat Transferred 6186 | . . . . 148 74 5964 Parts Sabotaged . | . . . . . . . Parts Stolen . | . . . . . . . Parts Stripped . | . . . . . . . Power Chain Reactions 1 | . . . . . 1 . Alert | -11 -10 -10 -10 -8 -8 -6 ------- Run | Yrd Mat Min Sub Rec Scr Fac Maximum Alert Level 3 | . 2 1 . . . 3 Low Security (%) 59 | 100 50 86 . 100 . 42 Level 1 7 | . 27 13 . . . 2 Level 2 20 | . 22 . . . . 31 Level 3 12 | . . . . . . 22 Level 4 . | . . . . . . . Level 5 . | . . . . . . . High Security . | . . . . . . . Max Security . | . . . . . . . Peak Influence 953 | 10 507 227 . 155 . 953 Initial 197 | . . 197 . 72 . . Average 253 | . 226 110 . 45 . 367 Influence Increases 3291 | 20 930 80 378 283 . 1600 Destroy 0b10 Robot/C 2060 | . 600 40 280 80 . 1060 Destroy 0b10 Robot/NC 115 | 20 10 30 . 10 . 45 Destroy Leader 406 | . 142 10 20 . . 234 Allied During Kill 15 | . . . 3 8 . 4 Successful Hack 54 | . . . . . . 54 Select Force Hacks 340 | . 160 . . 180 . . Disable Machine 60 | . . . . . . 60 Destroy Structure 76 | . 3 . . 5 . 68 Partial Spotted 15 | . . . . . . 15 Lose Combat Pursuer 150 | . 15 . 75 . . 60 Influence Decreases 2338 | 20 423 587 226 435 . 647 Entered New Map 390 | . . 310 . 80 . . Time Decay 1831 | 20 413 277 226 315 . 580 Lost Part 50 | . 10 . . . . 40 Lost Ally 67 | . . . . 40 . 27 Squads Dispatched 24 | . 11 . . . . 13 Investigation 14 | . 11 . . . . 3 Extermination 5 | . . . . . . 5 Reinforcement 1 | . . . . . . 1 Assault 1 | . . . . . . 1 Garrison 3 | . . . . . . 3 Intercept . | . . . . . . . Searches Triggered . | . . . . . . . Construction Impeded . | . . . . . . . Haulers Reinforced . | . . . . . . . Active Scanning Responses . | . . . . . . . Cargo Convoy Interrupts 1 | . . . . . . 1 Stealth | -11 -10 -10 -10 -8 -8 -6 --------- Run | Yrd Mat Min Sub Rec Scr Fac Distress Signals 5 | . . . . . . 5 Communications Jammed . | . . . . . . . Distress Signals . | . . . . . . . Times Spotted 182 | . 33 2 34 3 27 83 Peak Tracking Total 11 | . 5 2 3 2 8 11 Tactical Retreats 9 | . 1 . 3 . 1 4 Traps | -11 -10 -10 -10 -8 -8 -6 ------- Run | Yrd Mat Min Sub Rec Scr Fac Traps Triggered 10 | . 4 . 1 . . 5 Indirectly . | . . . . . . . Trap Hack Attempts . | . . . . . . . Triggered . | . . . . . . . Disarmed . | . . . . . . . Reprogrammed . | . . . . . . . Reused . | . . . . . . . Traps Extracted . | . . . . . . . Installed . | . . . . . . . Triggered . | . . . . . . . Machines | -11 -10 -10 -10 -8 -8 -6 ---------- Run | Yrd Mat Min Sub Rec Scr Fac Machines Disabled 7 | . . . 3 . . 4 Max in Single Turn 2 | . . . . . . 2 Garrison Access 1 | . . . . . . 1 Machines Repaired . | . . . . . . . Machines Dismantled . | . . . . . . . Machines Sabotaged 2 | . 2 . . . . . Overloaded Fab Kills . | . . . . . . . Hacking | -11 -10 -10 -10 -8 -8 -6 --------- Run | Yrd Mat Min Sub Rec Scr Fac Machines Accessed 33 | . 10 . 1 7 4 11 Terminals 15 | . 7 . . . . 8 Fabricators 2 | . . . . . . 2 Repair Stations 1 | . 1 . . . . . Recycling Units 8 | . 2 . . 6 . . Scanalyzers . | . . . . . . . Garrison Access 1 | . . . . . . 1 Total Hacks 93 | . 15 . 4 9 36 29 Successful 72 | . 10 . 4 8 36 14 Failed 21 | . 5 . . 1 . 15 Catastrophic 3 | . 1 . . . . 2 Database Lockouts . | . . . . . . . Manual 39 | . 14 . . 7 . 18 Terminals 32 | . 12 . . . . 20 Fabricators 7 | . . . . . . 7 Repair Stations 1 | . 1 . . . . . Recycling Units 9 | . 2 . . 7 . . Scanalyzers . | . . . . . . . Garrison Access 2 | . . . . . . 2 Terminal Hacks 47 | . 2 . 4 2 36 3 Record 35 | . 1 . 4 2 28 . Part Schematic 1 | . . . . . . 1 Robot Schematic 1 | . . . . . . 1 Robot Analysis 9 | . 1 . . . 8 . Branch Access Points 1 | . . . . . . 1 Fabricator Hacks 4 | . . . . . . 4 Network Status 1 | . . . . . . 1 Load Schematic 2 | . . . . . . 2 Build 1 | . . . . . . 1 Repair Station Hacks . | . . . . . . . Recycling Unit Hacks . | . . . . . . . Scanalyzer . | . . . . . . . Garrison Access Hacks 1 | . . . . . . 1 Seal Access 1 | . . . . . . 1 Unauthorized Hacks 20 | . 8 . . 6 . 6 Terminals 11 | . 5 . . . . 6 Assimilate 1 | . . . . . . 1 Botnet 3 | . . . . . . 3 Operators 2 | . . . . . . 2 Sabotage 4 | . 4 . . . . . Search 1 | . 1 . . . . . Fabricators . | . . . . . . . Repair Stations 1 | . 1 . . . . . Patch 1 | . 1 . . . . . Recycling Units 8 | . 2 . . 6 . . Tunnel 8 | . 2 . . 6 . . Scanalyzers . | . . . . . . . Garrison Access . | . . . . . . . Data Cores Recovered . | . . . . . . . Used . | . . . . . . . Hacking Detections 12 | . 3 . . . . 9 Full Trace Events 5 | . 2 . . . . 3 Feedback Events . | . . . . . . . Feedback Blocked . | . . . . . . . Robot Schematics Acquired 1 | . . . . . . 1 Robots Built . | . . . . . . . Authchips . | . . . . . . . Time . | . . . . . . . Total Robot Build Rating . | . . . . . . . Part Schematics Acquired 19 | . . . . . . 19 Parts Built 1 | . . . . . . 1 Authchips . | . . . . . . . Time 53 | . . . . . . 53 Total Part Build Rating 6 | . . . . . . 6 Part Studies Acquired . | . . . . . . . Parts Repaired . | . . . . . . . Time . | . . . . . . . Parts Recycled . | . . . . . . . Recycled Matter . | . . . . . . . Retrieved Matter . | . . . . . . . Retrieved Components . | . . . . . . . Parts Scanalyzed . | . . . . . . . Part Schematics Acquired . | . . . . . . . Parts Damaged . | . . . . . . . Bothacking | -11 -10 -10 -10 -8 -8 -6 ------------ Run | Yrd Mat Min Sub Rec Scr Fac Used RIF Installer . | . . . . . . . Robots Hacked . | . . . . . . . Non-combat . | . . . . . . . Combat . | . . . . . . . Robot Hacks Applied . | . . . . . . . Relay Couplers Released . | . . . . . . . Fabnet Peak Effective % . | . . . . . . . Robots Rewired 1 | . . . . . . 1 Allies Hacked 1 | . . . . . . 1 Hacks Repelled . | . . . . . . . Allies | -11 -10 -10 -10 -8 -8 -6 -------- Run | Yrd Mat Min Sub Rec Scr Fac Total Allies 5 | . . . 3 . . 2 Largest Group 3 | . . . 3 3 1 1 Highest-Rated Group 57 | . . . 57 57 19 29 Highest-Rated Ally 29 | . . . 19 19 19 29 Total Orders 6 | . . . . . . 6 STAY 3 | . . . . . . 3 FOLLOW 3 | . . . . . . 3 Ally Attacks 22 | . . . 1 10 3 8 Total Damage 562 | . . . 58 161 252 91 Kills 8 | . . . 1 2 4 1 Allies Corrupted . | . . . . . . . Allies Melted . | . . . . . . . Intel | -11 -10 -10 -10 -8 -8 -6 ------- Run | Yrd Mat Min Sub Rec Scr Fac Active Infowar (turns) 14168 | 63 1056 634 4884 1111 3053 3367 Sensors 62 | . . . . . 62 . IFF 3018 | . . . . . . 3018 Terrain 10145 | 60 1056 634 4884 1111 2400 . Structural 4327 | . . . . . 960 3367 Seismic 4806 | 63 1056 634 3053 . . . Robot Analysis Total 9 | . 1 . . . 8 . Derelict Logs Recovered 4 | . . 1 2 . 1 . Drone Launches . | . . . . . . . Drone Recoveries . | . . . . . . . Exploration | -11 -10 -10 -10 -8 -8 -6 ------------- Run | Yrd Mat Min Sub Rec Scr Fac Turns Passed 14256 | 127 1056 634 4884 1111 3053 3391 Spaces Moved 9501 | 98 697 722 2945 866 2169 2004 Core 14 | 12 . . . . . 2 Treads . | . . . . . . . Legs 3561 | . . . . 109 1587 1865 Wheels 4439 | 86 468 183 2945 757 . . Hover 1487 | . 229 539 . . 582 137 Flight . | . . . . . . . Fastest Speed 50 | 50 65 65 80 95 80 80 Average Speed 106 | 87 75 71 106 111 115 120 Slowest Speed 140 | 100 80 80 110 130 140 130 Overloaded Moves . | . . . . . . . Propulsion Burnouts . | . . . . . . . Robots Hopped . | . . . . . . . Potential Cave-ins . | . . . . . . . Cave-ins Triggered . | . . . . . . . Exploration Rate (%) 74 | 6 95 99 95 99 90 36 Regions Visited 6 Branch Regions 4 Pre-discovered Areas 15 | . 2 2 2 6 3 . Known Exits Taken . | . . . . . . . Unknown Exits Taken 6 | 1 1 1 1 1 1 . Scrap Searched 14 | . . 1 7 . 6 . Spaces Dug 2 | . . . 2 . . . Terrain Destroyed 94 | . . . 5 5 7 77 Melee . | . . . . . . . Projectile 10 | . . . 5 5 . . AOE 84 | . . . . . 7 77 Terrain Rammed . | . . . . . . . Walls Destroyed . | . . . . . . . Machines Disabled . | . . . . . . . Actions | -11 -10 -10 -10 -8 -8 -6 --------- Run | Yrd Mat Min Sub Rec Scr Fac Total 12852 | 116 1066 789 4467 989 2674 2751 Wait 2508 | . 242 27 1332 93 439 375 Move 9495 | 97 696 721 2944 865 2168 2004 Hop . | . . . . . . . Pick Up 14 | . 2 1 3 1 5 2 Fast Attach 43 | 7 1 2 4 . 12 17 Attach 4 | . . . 1 . 2 1 Detach 2 | . . . 1 . 1 . Swap 28 | 3 . 2 10 5 1 7 Drop 35 | . 3 1 13 4 10 4 Fire 490 | 9 82 23 124 9 28 215 Melee . | . . . . . . . Ram . | . . . . . . . Kick 1 | . . . . . . 1 Crush . | . . . . . . . Escape Stasis . | . . . . . . . Rewire 17 | . . . . . . 17 Trap . | . . . . . . . Miscellaneous 215 | . 40 12 35 12 8 108 Route ------- -11/Scrapyard -10/Materials (discovered 6 exits: [*Mat x3] / [*Min x2] / Sub) -10/Mines (discovered 3 exits: [*Mat x2] / *Sub) -10/Subcaves (discovered 3 exits: [*Mat x2] / *Rec) -8/Recycling (discovered 2 exits: *Fac / *Scr) -8/Scraptown (discovered 2 exits: *Fac x2) -6/Factory (discovered 5 exits: *Fac x3 / Low x2) History --------- Turn | Location | Event 1 | -11/Scrapyard | Upgraded with Propulsion slot (x1) 1 | -11/Scrapyard | Upgraded with Utility slot (x1) 1 | -11/Scrapyard | Upgraded with Weapon slot (x1) 23 | -11/Scrapyard | Discovered new exit (range 16) 128 | -11/Scrapyard | Entered Materials 303 | -10/Materials | Build established: Scavenger-Mutant 606 | -10/Materials | Core integrity fell below 50% 613 | -10/Materials | Reached level 2 622 | -10/Materials | Discovered new exit (range 8) 635 | -10/Materials | Discovered new exit (range 15) 664 | -10/Materials | Core integrity fell below 20% 690 | -10/Materials | Discovered new exit (range 15) 696 | -10/Materials | Destroyed 8 combat bots 724 | -10/Materials | Discovered new exit (range 15) 788 | -10/Materials | Reached level 3 835 | -10/Materials | Discovered new exit (range 4) 981 | -10/Materials | Build established: Mutant 1141 | -10/Materials | Discovered new exit (range 16) 1170 | -10/Materials | Reached level 4 1176 | -10/Materials | Upgraded with Power slot (x1) 1176 | -10/Materials | Upgraded with Propulsion slot (x1) 1176 | -10/Materials | Upgraded with Utility slot (x1) 1176 | -10/Materials | Upgraded with Weapon slot (x1) 1184 | -10/Materials | Entered Mines 1343 | -10/Mines | Learned location of Zion (-6) 1367 | -10/Mines | Learned location of Storage (-8) 1367 | -10/Mines | Discovered new exit (range 5) 1443 | -10/Mines | Deemed a non-threat by the Exiles lab entrance 1516 | -10/Mines | Received a Rocket Launcher from a helpful Derelict 1545 | -10/Mines | Discovered new exit (range 15) 1602 | -10/Mines | Build established: Scavenger-Mutant 1681 | -10/Mines | Discovered new exit (range 13) 1818 | -10/Mines | Entered Subcaves 1819 | -10/Subcaves | Approached by a straggling Scientist 1819 | -10/Subcaves | Learned Materials emergency access door positions 1820 | -10/Subcaves | Reached level 5 1962 | -10/Subcaves | Discovered new exit (range 15) 1973 | -10/Subcaves | Shifting Twisted Machinery released Sub. Laser 1984 | -10/Subcaves | Shifting Twisted Machinery released Sub. Monowheel 1998 | -10/Subcaves | Met a Zionite searching for "candidates" 2095 | -10/Subcaves | Upgraded with Utility slot (x1) 2155 | -10/Subcaves | Discovered new exit (range 8) 2204 | -10/Subcaves | Visited 4L-MR0's lab 2227 | -10/Subcaves | A Subdweller sparked back to life 2227 | -10/Subcaves | A Subdweller sparked back to life 2249 | -10/Subcaves | Build established: Scavenger-Gunner 2262 | -10/Subcaves | Found Prototype Leg 2262 | -10/Subcaves | Identified Cargo Legs 2263 | -10/Subcaves | Attached Cargo Legs, gained temporary slots: Utility x2 2282 | -10/Subcaves | Shifting Twisted Machinery released Mak. Flight Unit 2283 | -10/Subcaves | Shifting Twisted Machinery released Sub. Beam Cannon 2524 | -10/Subcaves | A swath of the cavern ceiling suddenly collapsed 2644 | -10/Subcaves | Build established: Scavenger-Skirmisher 2674 | -10/Subcaves | A swath of the cavern ceiling suddenly collapsed 3674 | -10/Subcaves | Shifting Twisted Machinery released Battle Rifle 3707 | -10/Subcaves | Shifting Twisted Machinery released Battle Rifle 4394 | -10/Subcaves | Disturbed a concealed Subdweller 4451 | -10/Subcaves | Learned location of 1 exit from Materials 4520 | -10/Subcaves | Discovered new exit (range 10) 4853 | -10/Subcaves | Visited triangular shrine 4872 | -10/Subcaves | Found Prototype Device 4872 | -10/Subcaves | Identified V3-11A's Pendant 4877 | -10/Subcaves | Befriended Subdweller 4936 | -10/Subcaves | Visited Clippyterm 4939 | -10/Subcaves | Learned location of Section 7 (-2) 5162 | -10/Subcaves | Befriended Subdweller 5178 | -10/Subcaves | Build established: Derelict-Skirmisher 6472 | -10/Subcaves | Befriended Subdweller 6702 | -10/Subcaves | Entered Recycling 6702 | -8/Recycling | Accompanied by 3 allies 6704 | -8/Recycling | Reached level 6 6888 | -8/Recycling | Discovered new exit (range 10) 6909 | -8/Recycling | Reached level 7 7326 | -8/Recycling | Scanned before Scraplab entrance 7338 | -8/Recycling | Discovered new exit (range 12) 7342 | -8/Recycling | Entered Scraplab 7813 | -8/Recycling | Entered Scraptown 7813 | -8/Scraptown | Accompanied by 1 ally 7860 | -8/Scraptown | Visited Fellowship of the Rings 7877 | -8/Scraptown | Visited Awakened 7895 | -8/Scraptown | Visited Symbiants 7908 | -8/Scraptown | Visited Shadow of the Wyrm 7926 | -8/Scraptown | Build established: Skirmisher 7932 | -8/Scraptown | Visited The Evicted 7947 | -8/Scraptown | Visited IN-MT5's Study 7977 | -8/Scraptown | Visited TADAMA 8185 | -8/Scraptown | Delivered V3-11A's Pendant to T0-NE2 in exchange for information 8290 | -8/Scraptown | Heard Great Nut preacher, LISTEN AND RECITE! 8332 | -8/Scraptown | Discovered new exit (range 12) 8410 | -8/Scraptown | Scanned Subdweller tech in exchange for log data 8789 | -8/Scraptown | Visited UFD Registry 8789 | -8/Scraptown | Registered with UFD as "Gravchaser" 8836 | -8/Scraptown | Visited Abandonware Association 8886 | -8/Scraptown | Visited DA-N13 Charitable Foundation 8891 | -8/Scraptown | Found DCF Scrap (30 items) 8923 | -8/Scraptown | Visited Curators Association 8928 | -8/Scraptown | Discovered new exit (range 16) 8969 | -8/Scraptown | Visited Infowarlord's Domain 8986 | -8/Scraptown | Visited Research Penetration Think Tank 9002 | -8/Scraptown | Visited Analyses Database 9037 | -8/Scraptown | Visited Junk Repository 9091 | -8/Scraptown | Visited A0-MCA Data Center 9305 | -8/Scraptown | Delivered Scrap Shield to a Scientist 9705 | -8/Scraptown | Visited Cartography Club 9819 | -8/Scraptown | Learned 12 Factory zone layouts 9819 | -8/Scraptown | Learned 20 Factory zone layouts 9819 | -8/Scraptown | Learned 12 Research zone layouts 9819 | -8/Scraptown | Learned 8 Access zone layouts 9819 | -8/Scraptown | Learned 4 Mines zone layouts 9819 | -8/Scraptown | Learned 8 Upper Caves zone layouts 9819 | -8/Scraptown | Learned 24 Upper Caves zone layouts 9819 | -8/Scraptown | Learned 16 Lower Caves zone layouts 9819 | -8/Scraptown | Learned 4 Armory zone layouts 9819 | -8/Scraptown | Learned Storage emergency access door positions 9819 | -8/Scraptown | Learned location of 3 exits from Upper Caves 9819 | -8/Scraptown | Learned location of 2 exits from Proximity Caves 9906 | -8/Scraptown | Found Deep Structural Scanner 9974 | -8/Scraptown | Build established: Mutant 10262 | -8/Scraptown | Given an A- rating by A0-MCA 10265 | -8/Scraptown | Found A0-MCA's Component Scanner 10451 | -8/Scraptown | Learned abandonware demo "REBOOT5.EXE" 10502 | -8/Scraptown | Build established: Tank 10587 | -8/Scraptown | Met Optimus 10587 | -8/Scraptown | Reached level 8 10587 | -8/Scraptown | Accepted into 0bPrime 10675 | -8/Scraptown | Civil war broke out across Scraptown 10709 | -8/Scraptown | Attacked by Scraptown defenders 10744 | -8/Scraptown | Upgraded with Utility slot (x1) 10760 | -8/Scraptown | Found Exp. Sensor Array 10866 | -8/Scraptown | Entered Factory 10867 | -6/Factory | Identified exit to Lower Caves 10867 | -6/Factory | Core integrity fell below 50% 10867 | -6/Factory | Core integrity fell below 20% 10868 | -6/Factory | Identified exit to Factory 10868 | -6/Factory | Reached level 9 10897 | -6/Factory | Lost 3 parts (1p2w) 11096 | -6/Factory | Tech Extrapolator generated special schematic: Deep Structural Scanner 11107 | -6/Factory | Upgraded with Propulsion slot (x1) 11385 | -6/Factory | Build established: Scavenger-Gunner 11754 | -6/Factory | Reached level 10 12219 | -6/Factory | Garrison activated, responded to threat 12263 | -6/Factory | Upgraded with Utility slot (x1) 12300 | -6/Factory | Cargo convoy interrupted 12340 | -6/Factory | Reached level 11 12386 | -6/Factory | Tech Extrapolator generated special schematic: Mak. Core Shielding 12391 | -6/Factory | Destroyed 12 combat bots 12418 | -6/Factory | Found Mni. Smartbomb Launcher 12814 | -6/Factory | Reached level 12 12920 | -6/Factory | Spotted B-75 Beast 13440 | -6/Factory | Tech Extrapolator generated special schematic: Energy Deflector 13886 | -6/Factory | Reached level 13 13901 | -6/Factory | Fabricated Adv. Hacking Suite (x1) 14016 | -6/Factory | First assault squad dispatched 14181 | -6/Factory | Tech Extrapolator generated special schematic: Machine Rigger 14237 | -6/Factory | Build established: Hacker-Mutant 14257 | -6/Factory | Destroyed by G-50 Soldier with Heavy Laser Last Messages --------------- Y-54 Guardian Tier: 4 Schematic downloaded. >>Access(Branch) Found 2 branch access points: (52,89) Lower Caves (149,196) Lower Caves Map updated. 14199_ ALERT: Suspicious activity at Terminal F003. Dispatching Investigation squad. 14209_ Kicked M-13 Machinist. 14217_ Graviton Reactor severed. 14218_ Upgraded: Core Integrity (+50) 14224_ L-41 Fighter destroyed. 14226_ Upgraded: Core Integrity (+100) 14239_ K-01 Serf collects debris. 14241_ System corrupted: Matter fused (-6). 14243_ Critical hit (Burn: +25). 14255_ G-67 Veteran destroyed. 14257_ Critical hit (Burn: +18). Map ----- +----------------------------------------------------+ | # # """ # # #????? | | # ! # """ # # #????? | | # # # ########????? | | ###########+##### ####????????? | | ######??????? | | ### ##### ######??????? | | ### ##### ^ ##########??? | | ### ##### ### #??? | | ### ##### =########### # #??? | | ###+##### !########### # """ #??? | | ?????#### [%########### + """ #??? | | ?????#### ##"########### # """ #??? | | ?????#### #[=* # # #??? | | ?????#### # """"""""" #! #########??? | | ?????#### # # " " #####??????? | | ?????#### # """"""""" # " " #####??????? | | ?????#### #" # " " #####??????? | | ????##### "%" != #" " " ####???????? | | ????##### ? " != #" " " ####???????? | | ????+ ? %% == = #" " " ####???????? | | ????##### ? +! #T " " ####???????? | | ????##### ? # #" " " ####???????? | | ????##### ? # #" " " ####???????? | | ????##### ? # " #" ####???????? | | ?????#### ? ##############g ####???????? | | ????????? [!!*@=glg=* ####???????? | | ????????? #############+#### ####???????? | | ?????????????? ########## ## ####???????? | | ?????????????? ########## """"## ###########? | | ?????????????? ########## """"## ## #? | | ???????????????????????#### """"## ## #? | | ???????????????????????#### """"## ## #? | | ???????????????????????####[ ## ## #? | | ???????????????????????############ ## #? | | ???????????#+######????############ ## #? | | ??????????? #????############ ## #? | | ??????????? #????############ ## #? | | ???????????"""""" #??????????????## ## #? | | ???????????"""""" #??????????????# ##+#####+## | | ???????????"""""" #??????????????# # | | ???????????"""""" #??????????????# " # | | ??????????? #??????????????# # | | ???????????"""""" #??????????????# ####### # | | ???????????"""""" #??????????????############# # | | ???????????"""""" #??????????????# + + | | ???????????"""""" #??????????????# # # | | ??????????? #??????????????# """ """ # # | | ???????????########??????????????# """ """ # # | | ?????????????????????????????????# """ """ # # | | ?????????????????????????????????# # # | +----------------------------------------------------+ Best States ------------- Heat Dissipation 85 Energy Generation 58 Energy Capacity 580 Matter Stores 300 Matter Capacity 300 Sight Range 16 Robot Scan Range 20 Terrain Scan Range 16 Terrain Scan Density 310 Armor Coverage 800 Resistance: KI 20 Resistance: TH 5 Weapon Cycling 15 Evasion (%) 55 Salvage Targeting 8 Offensive Hacking 34 Defensive Hacking 5 Item Schematics ----------------- Deep Structural Scanner | -6/Factory | Extrapolated Beamcaster | -6/Factory | Extrapolated Mak. Coolant Network | -6/Factory | Extrapolated Mak. Terrain Scanner | -6/Factory | Extrapolated Mak. Core Shielding | -6/Factory | Extrapolated Mak. Power Source | -6/Factory | Extrapolated Multireflex Exoskeleton | -6/Factory | Extrapolated Mak. Medium Armor Plating | -6/Factory | Extrapolated 0b10 Decoder Chip [Generic] | -6/Factory | Extrapolated 0b10 Decoder Chip [Scout] | -6/Factory | Extrapolated 0b10 Decoder Chip [Skirmisher] | -6/Factory | Extrapolated Mak. Trap Scanner | -6/Factory | Extrapolated Mak. Thermal Plating | -6/Factory | Extrapolated Mak. Ablative Armor | -6/Factory | Extrapolated Energy Deflector | -6/Factory | Extrapolated Adv. Hacking Suite | -6/Factory | Hacked Mak. Flight Unit | -6/Factory | Extrapolated Mak. Hacking Suite | -6/Factory | Extrapolated Machine Rigger | -6/Factory | Extrapolated Robot Schematics ------------------ Y-54 Guardian | -6/Factory | Hacked Fabricated ------------ Adv. Hacking Suite | x1 | -6/Factory Repaired ---------- Nothing Studied --------- None Alien Tech Used ----------------- None Achievements -------------- None Challenges ------------ None RPGLIKE | -11 -10 -10 -10 -8 -8 -6 --------- Run | Yrd Mat Min Sub Rec Scr Fac Levels Raised 12 | . 3 . 1 2 1 5 XP Earned 22305 | 3000 4532 750 2034 2332 939 8718 XP Spent 20830 | 2960 4000 . 1475 1790 3170 7435 Upgrades 63 | 10 6 . 7 8 11 21 Power Slot 1 | . 1 . . . . . Propulsion Slot 3 | 1 1 . . . . 1 Utility Slot 5 | 1 1 . 1 . 1 1 Weapon Slot 2 | 1 1 . . . . . Core Integrity 24 | . . . 3 . 8 13 Heat Dissipation 10 | 3 . . . 7 . . Energy Generation 1 | . . . . . 1 . Mass Support 2 | 1 . . . 1 . . Inventory Capacity 4 | 2 . . . . 1 1 Terrain Scan Density 3 | . . . 3 . . . Ranged Accuracy 3 | 1 2 . . . . . Hack Attack % 2 | . . . . . . 2 Hack Defense % 1 | . . . . . . 1 KI Resistance % 1 | . . . . . . 1 TH Resistance % 1 | . . . . . . 1 Protomatter Created 1920 | . 342 80 221 46 139 1092 Integrity Restored 4368 | . 842 235 429 282 171 2409 Core 4193 | . 794 108 429 282 171 2409 Parts 175 | . 48 127 . . . . Protomatter Decayed 3978 | . 46 . 71 . 3649 212 Game ------ Seed SlugScrapoidSubcomponent Manual? 0 Play Time 01:44:25 Cumulative 475.8 hours Start 2025.12.12 @ 08:55:01 End 2025.12.12 @ 12:14:38 Sessions 1 Manual Loads 0 Difficulty Rogue Special Mode Winter2019/RPGLIKE Game No. 179 Rogue 25 Adventurer 154 Explorer 0 Win Type - Total 19 Types 4/3/3/3/2/1/0/1/1/1 Lore% 93 Gallery% 85 Achievement% 61 Wizard Run 0 Options --------- Layout 2 ASCII 0 Keyboard 0 Movement Numpad Keybinds 0 Fullscreen 2 Font 24/Smallcaps Map View 50x44 Zoom Use 0% Tactical HUD 1 Map Filters NONE Filters NONE Steam 1 RUN: 8fe67ecb-9101-4531-b58c-ed6e3ef49c5a